bitfinex/quotes_SOLUSD_20240606
["timestamp","ask_amount","ask_price","bid_price","bid_amount"]
[1717704491844,8.5699,168.8,168.74,41.64]
[1717704492658,8.5699,168.8,168.74,35.57]
[1717704492845,2.1917,168.82,168.74,35.57]
[1717704492846,6.07,168.79,168.74,35.57]
[1717704495692,6.07,168.79,168.72,35.57]
[1717704495973,6.07,168.78,168.74,35.57]
[1717704497080,6.07,168.79,168.74,6.07]
[1717704497757,6.07,168.79,168.69,6.6073]
[1717704497949,6.07,168.75,168.7,35.57]
[1717704498156,6.07,168.75,168.69,41.64]
[1717704498858,6.07,168.75,168.69,35.57]
[1717704499071,6.07,168.75,168.69,41.64]
[1717704501280,6.07,168.75,168.66,35.57]
[1717704501487,6.07,168.75,168.69,41.64]
[1717704501784,6.07,168.75,168.7,6.07]
[1717704503177,6.07,168.75,168.68,35.57]
[1717704503379,10.8879,168.8,168.68,35.57]
[1717704503380,6.07,168.77,168.71,6.07]
[1717704503674,29.0979,168.8,168.71,6.07]
[1717704503981,2.4999,168.8,168.74,6.07]
[1717704504167,2.4999,168.8,168.75,6.07]
[1717704504573,8.5699,168.8,168.75,6.07]
[1717704504776,6.07,168.79,168.74,41.64]
[1717704505085,4.8179,168.84,168.76,35.57]
[1717704505260,2.4999,168.84,168.77,35.57]
[1717704505469,6.07,168.83,168.78,41.64]
[1717704505778,2.4999,168.88,168.79,41.64]
[1717704505996,6.07,168.85,168.79,41.64]
[1717704506161,6.07,168.85,168.8,6.07]
[1717704506657,2.4999,168.88,168.8,41.64]
[1717704506862,6.07,168.87,168.82,35.57]
[1717704508392,2.4999,168.88,168.82,35.57]
[1717704508393,2.4999,168.88,168.82,41.64]
[1717704508567,8.5699,168.88,168.82,41.64]
[1717704508762,6.07,168.87,168.82,35.57]
[1717704509006,2.4999,168.88,168.82,35.57]
[1717704509286,6.07,168.86,168.82,35.57]
[1717704509756,2.1906,168.9,168.82,35.57]
[1717704509960,6.07,168.87,168.82,35.57]
[1717704511673,2.4999,168.93,168.83,41.81]
[1717704511872,2.4999,168.93,168.86,35.57]
[1717704512084,0.03696105,168.94,168.86,41.64]
[1717704512085,2.22706105,168.94,168.86,41.64]
[1717704512399,6.07,168.91,168.86,41.64]
[1717704512569,6.07,168.91,168.86,35.57]
[1717704513094,0.03696105,168.94,168.86,41.64]
[1717704513389,6.07,168.91,168.87,35.57]
[1717704513689,6.07,168.91,168.87,80.57]
[1717704514193,6.07,168.9,168.85,0.17]
[1717704514394,6.07,168.9,168.86,35.57]
[1717704515198,6.07,168.91,168.86,41.64]
[1717704516691,6.07,168.91,168.86,35.57]
[1717704516862,2.1903,168.93,168.86,35.57]
[1717704517184,2.1907,168.89,168.83,35.57]
[1717704517394,6.07,168.84,168.76,6.5935]
[1717704517573,4.3817,168.89,168.72,6.5935]
[1717704517774,6.07,168.79,168.72,6.5935]
[1717704518081,2.1915,168.83,168.74,35.57]
[1717704518293,2.1912,168.86,168.76,6.07]
[1717704518465,4.5517,168.89,168.72,30.8735]
[1717704518466,0.17,168.89,168.78,41.64]
[1717704518773,26.4709,168.88,168.78,41.64]
[1717704518976,2.1909,168.88,168.8,6.07]
[1717704519196,6.07,168.86,168.8,6.07]
[1717704519567,6.07,168.83,168.74,35.57]
[1717704519764,6.07,168.85,168.79,41.64]
[1717704519969,2.1909,168.88,168.8,45.0]
[1717704520211,1.36792672,168.89,168.8,45.0]
[1717704520375,2.1909,168.88,168.8,45.0]
[1717704520688,2.1909,168.88,168.79,35.57]
[1717704520897,2.191,168.87,168.76,35.57]
[1717704521080,2.191,168.87,168.78,35.57]
[1717704521387,2.1909,168.88,168.78,35.57]
[1717704521571,2.1909,168.88,168.79,80.57]
[1717704522399,2.191,168.87,168.79,80.57]
[1717704523066,2.191,168.87,168.77,0.34]
[1717704523274,2.191,168.87,168.78,35.57]
[1717704524189,2.1911,168.86,168.78,35.57]
[1717704524693,2.1913,168.85,168.73,35.57]
[1717704524999,2.1913,168.85,168.75,35.57]
[1717704525171,2.1913,168.85,168.76,80.57]
[1717704525489,2.1913,168.85,168.76,35.57]
[1717704526173,2.1913,168.85,168.75,35.57]
[1717704526371,2.1913,168.85,168.68,21.7102]
[1717704526372,2.1917,168.82,168.68,21.7102]
[1717704526575,2.1916,168.82,168.68,21.7102]
[1717704527394,2.1916,168.82,168.69,35.57]
[1717704527770,2.1916,168.82,168.71,35.57]
[1717704527994,22.4999,168.84,168.72,80.57]
[1717704527995,2.1918,168.81,168.72,80.57]
[1717704528392,22.4999,168.84,168.72,80.57]
[1717704528578,2.1917,168.82,168.72,80.57]
[1717704529100,2.1918,168.81,168.72,80.57]
[1717704529394,2.1916,168.82,168.72,80.57]
[1717704530191,2.1918,168.81,168.72,80.57]
[1717704530568,2.1919,168.8,168.72,80.57]
[1717704530977,2.192,168.79,168.72,80.57]
[1717704531794,2.1919,168.8,168.72,80.57]
[1717704534300,2.192,168.79,168.72,80.57]
[1717704534501,2.192,168.79,168.7,0.17]
[1717704534708,2.192,168.79,168.7,80.91]
[1717704535092,2.192,168.79,168.7,80.57]
[1717704536501,2.1922,168.78,168.7,80.57]
[1717704537927,2.1924,168.76,168.7,80.57]
[1717704538088,2.1923,168.77,168.65,35.57]
[1717704538287,2.1922,168.78,168.67,35.57]
[1717704538608,2.1922,168.78,168.69,35.57]
[1717704540112,2.1925,168.76,168.69,35.57]
[1717704540407,2.1923,168.77,168.69,35.57]
[1717704540611,2.1922,168.78,168.69,35.57]
[1717704541909,6.07,168.77,168.71,6.07]
[1717704542087,2.1921,168.79,168.71,41.64]
[1717704542293,8.2623,168.77,168.69,35.57]
[1717704542511,6.07,168.76,168.71,6.07]
[1717704542715,6.07,168.76,168.7,6.07]
[1717704543798,6.07,168.76,168.71,6.07]
[1717704543999,6.07,168.77,168.71,6.07]
[1717704544408,8.2623,168.77,168.71,6.07]
[1717704544597,6.07,168.77,168.71,6.07]
[1717704545113,8.2623,168.77,168.71,6.07]
[1717704547325,8.2625,168.76,168.69,35.57]
[1717704547493,6.07,168.75,168.69,41.64]
[1717704547812,6.07,168.75,168.69,35.57]
[1717704548113,6.07,168.74,168.69,35.57]
[1717704551921,2.1925,168.76,168.69,35.57]
[1717704552096,2.1925,168.76,168.69,41.64]
[1717704552627,2.1925,168.76,168.69,35.57]
[1717704552798,2.1925,168.76,168.69,41.64]
[1717704553805,2.1925,168.76,168.69,35.57]
[1717704554013,6.07,168.72,168.65,35.57]
[1717704554200,26.07,168.71,168.65,41.64]
[1717704554406,20.0,168.71,168.66,6.07]
[1717704554920,20.0,168.71,168.67,6.07]
[1717704555105,20.0,168.71,168.61,4.65744247]
[1717704555106,28.2629,168.72,168.66,6.07]
[1717704556925,8.2631,168.71,168.62,35.57]
[1717704557101,6.07,168.71,168.65,6.07]
[1717704557296,28.263,168.72,168.66,6.07]
[1717704557611,2.1926,168.75,168.64,41.64]
[1717704557917,262.2917,168.81,168.72,35.57]
[1717704558098,6.07,168.8,168.74,6.07]
[1717704558299,6.07,168.79,168.74,6.07]
[1717704558526,6.07,168.78,168.72,41.64]
[1717704558699,8.2621,168.79,168.73,6.07]
[1717704559402,2.1919,168.8,168.73,41.64]
[1717704559725,6.07,168.78,168.73,35.57]
[1717704559900,6.07,168.78,168.73,6.07]
[1717704560100,6.07,168.77,168.72,6.07]
[1717704560399,6.07,168.78,168.73,6.07]
[1717704562908,8.2622,168.78,168.73,6.07]
[1717704563121,6.07,168.78,168.73,6.07]
[1717704563322,2.1922,168.78,168.73,6.07]
[1717704563907,8.2622,168.78,168.73,6.07]
[1717704564320,0.0490442,168.78,168.76,41.64]
[1717704564521,0.0490442,168.78,168.77,6.07]
[1717704565525,0.0490442,168.78,168.74,0.17]
[1717704565714,0.0490442,168.78,168.74,55.57]
[1717704566111,0.0490442,168.78,168.75,6.07]
[1717704566709,0.0490442,168.78,168.74,6.07]
[1717704567533,0.0490442,168.78,168.75,6.07]
[1717704568029,0.0490442,168.78,168.76,6.07]
[1717704568406,0.0490442,168.78,168.75,6.07]
[1717704568931,0.0490442,168.78,168.73,35.57]
[1717704569115,0.0490442,168.78,168.74,6.07]
[1717704569613,0.0490442,168.78,168.7,35.57]
[1717704569819,0.0490442,168.78,168.73,6.07]
[1717704570222,0.0490442,168.78,168.74,6.07]
[1717704570420,0.0490442,168.78,168.73,6.07]
[1717704570814,0.0490442,168.78,168.74,6.07]
[1717704572805,0.0490442,168.78,168.7,35.57]
[1717704573010,0.0490442,168.78,168.74,6.07]
[1717704573211,0.0490442,168.78,168.73,6.07]
[1717704575137,0.0490442,168.78,168.74,6.07]
[1717704576825,0.0490442,168.78,168.73,6.07]
[1717704577336,6.1190442,168.78,168.73,6.07]
[1717704577742,6.1190442,168.78,168.72,35.57]
[1717704578036,0.0490442,168.78,168.74,6.07]
[1717704579527,0.0490442,168.78,168.75,6.07]
[1717704580450,0.0490442,168.78,168.72,35.57]
[1717704580619,8.3112442,168.78,168.7,35.57]
[1717704580820,8.2623,168.77,168.7,35.57]
[1717704581039,8.2623,168.77,168.71,6.07]
[1717704581941,6.07,168.76,168.7,6.07]
[1717704582139,6.07,168.76,168.71,6.07]
[1717704584346,8.2624,168.77,168.71,6.07]
[1717704584822,8.2624,168.77,168.66,35.57]
[1717704585025,8.2624,168.77,168.71,6.07]
[1717704585243,6.07,168.77,168.68,35.57]
[1717704585426,6.07,168.77,168.71,6.07]
[1717704585627,8.2623,168.77,168.71,6.07]
[1717704587244,6.07,168.75,168.66,35.57]
[1717704587565,8.2626,168.75,168.69,6.07]
[1717704589476,8.2626,168.75,168.62,4.83786782]
[1717704589477,2.1935,168.68,168.63,35.57]
[1717704589751,6.07,168.69,168.63,35.57]
[1717704589958,6.07,168.7,168.64,6.07]
[1717704590664,2.1927,168.74,168.66,6.07]
[1717704590946,6.8845,168.77,168.71,6.07]
[1717704590947,20.0,168.76,168.71,6.07]
[1717704591138,6.07,168.76,168.71,6.07]
[1717704591936,2.1925,168.76,168.65,35.57]
[1717704592149,6.07,168.73,168.67,41.64]
[1717704593050,6.07,168.72,168.67,35.57]
[1717704593253,6.07,168.72,168.67,41.64]
[1717704594546,6.1190442,168.72,168.67,41.64]
[1717704595056,0.0490442,168.72,168.68,6.07]
[1717704595838,6.07,168.7,168.62,35.57]
[1717704596146,6.07,168.68,168.62,35.57]
[1717704596347,6.07,168.68,168.62,41.64]
[1717704596547,6.07,168.68,168.62,35.57]
[1717704596849,6.07,168.68,168.58,35.57]
[1717704596850,6.07,168.67,168.58,35.57]
[1717704597034,6.07,168.66,168.6,41.64]
[1717704597233,6.07,168.66,168.61,6.07]
[1717704597433,6.07,168.66,168.57,22.5452]
[1717704597771,2.4999,168.7,168.6,6.07]
[1717704597928,6.07,168.66,168.6,6.07]
[1717704598134,8.2636,168.67,168.61,6.07]
[1717704598457,6.07,168.66,168.6,6.07]
[1717704599048,6.07,168.65,168.6,6.07]
[1717704599542,6.07,168.65,168.59,35.57]
[1717704599742,8.5699,168.65,168.59,41.64]
[1717704600551,6.07,168.66,168.61,6.07]
[1717704600850,2.4999,168.69,168.63,6.07]
[1717704600851,8.5699,168.69,168.63,6.07]
[1717704601044,2.1937,168.67,168.63,6.07]
[1717704601249,8.2637,168.67,168.57,35.57]
[1717704601452,28.2635,168.68,168.62,6.07]
[1717704601675,2.1935,168.68,168.59,35.57]
[1717704602041,8.2636,168.67,168.59,35.57]
[1717704602262,6.07,168.67,168.61,6.07]
[1717704602666,8.2637,168.66,168.59,35.57]
[1717704602970,8.2637,168.66,168.6,6.07]
[1717704603148,6.07,168.66,168.59,35.57]
[1717704603472,6.07,168.66,168.6,6.07]
[1717704603642,4.6933,168.69,168.64,6.07]
[1717704603842,1.36792672,168.7,168.6,35.57]
[1717704604162,1.36792672,168.7,168.65,6.07]
[1717704604345,1.36792672,168.7,168.67,6.07]
[1717704604542,1.36792672,168.7,168.62,35.57]
[1717704604742,1.36792672,168.7,168.64,35.57]
[1717704604959,0.0490442,168.72,168.66,41.5707]
[1717704605276,0.0490442,168.72,168.7,6.07]
[1717704605761,0.0490442,168.72,168.71,6.07]
[1717704605968,0.0490442,168.72,168.7,6.07]
[1717704606167,0.0490442,168.72,168.69,6.07]
[1717704606652,0.0490442,168.72,168.7,6.07]
[1717704608077,0.0490442,168.72,168.68,35.57]
[1717704608269,0.0490442,168.72,168.69,80.57]
[1717704610454,0.0490442,168.72,168.7,0.17]
[1717704610658,0.0490442,168.72,168.71,35.57]
[1717704610853,0.0490442,168.72,168.71,80.57]
[1717704611955,0.0490442,168.72,168.71,35.57]
[1717704613161,0.0490442,168.72,168.71,42.2721]
[1717704613469,0.0490442,168.72,168.71,123.1893]
[1717704613671,0.0490442,168.72,168.71,261.4093]
[1717704614655,2.1914,168.84,168.71,261.4093]
[1717704614854,4.382,168.88,168.71,261.4093]
[1717704614855,2.1913,168.85,168.73,35.57]
[1717704615057,2.1913,168.85,168.75,35.57]
[1717704615268,2.1913,168.85,168.76,0.34]
[1717704615469,2.1913,168.85,168.77,35.57]
[1717704615662,4.691,168.87,168.77,35.57]
[1717704615866,2.1911,168.86,168.77,35.57]
[1717704616875,2.1913,168.85,168.77,35.57]
[1717704617471,2.1912,168.86,168.76,0.34]
[1717704617673,2.1911,168.86,168.77,35.57]
[1717704618177,2.1913,168.85,168.77,35.57]
[1717704618576,2.1913,168.85,168.76,0.34]
[1717704618758,2.1913,168.85,168.76,35.57]
[1717704619766,25.1019,168.87,168.76,35.57]
[1717704619967,2.1917,168.82,168.72,35.57]
[1717704620177,2.5487,168.85,168.72,35.57]
[1717704620178,18.22,168.84,168.72,35.57]
[1717704620379,18.22,168.81,168.72,35.57]
[1717704620580,18.22,168.81,168.68,35.57]
[1717704620767,2.1924,168.77,168.68,35.57]
[1717704621571,2.1918,168.81,168.69,120.0]
[1717704621767,20.0,168.84,168.72,35.57]
[1717704621968,24.74,168.85,168.72,35.57]
[1717704622282,4.7399,168.85,168.73,0.17]
[1717704622462,2.1914,168.84,168.74,35.57]
[1717704622660,2.1914,168.84,168.76,35.57]
[1717704623271,2.1915,168.83,168.76,35.57]
[1717704623565,2.1916,168.82,168.75,0.34]
[1717704623772,2.1916,168.82,168.75,80.91]
[1717704623978,2.5487,168.85,168.75,35.57]
[1717704624181,2.1915,168.83,168.75,35.57]
[1717704625358,6.9313,168.85,168.75,35.57]
[1717704625562,25.1513,168.85,168.75,35.57]
[1717704625781,0.17,168.84,168.74,35.57]
[1717704625980,2.1918,168.81,168.74,35.57]
[1717704626185,2.1917,168.82,168.74,35.57]
[1717704626499,0.17,168.84,168.73,20.0]
[1717704626670,4.3836,168.81,168.72,35.57]
[1717704626873,20.0,168.81,168.68,35.57]
[1717704627092,2.1922,168.78,168.68,35.57]
[1717704627385,2.1923,168.77,168.68,35.57]
[1717704627591,2.192,168.79,168.68,35.57]
[1717704627807,2.1922,168.78,168.68,35.57]
[1717704628166,2.1923,168.77,168.69,55.57]
[1717704629186,2.1922,168.78,168.69,55.57]
[1717704630291,2.1923,168.77,168.69,55.57]
[1717704631393,2.1925,168.76,168.64,35.57]
[1717704631596,2.1925,168.76,168.66,35.57]
[1717704631891,2.1925,168.76,168.68,35.57]
[1717704632769,2.1925,168.76,168.67,0.17]
[1717704632973,2.1925,168.76,168.67,80.74]
[1717704633174,2.5487,168.77,168.67,35.57]
[1717704633382,2.1927,168.74,168.67,35.57]
[1717704633593,4.385,168.76,168.67,35.57]
[1717704633782,2.1932,168.71,168.64,35.57]
[1717704634086,2.1929,168.72,168.6,35.57]
[1717704634271,20.0,168.75,168.6,155.57]
[1717704634474,2.1929,168.73,168.6,155.57]
[1717704635086,2.1929,168.73,168.62,35.57]
[1717704635270,2.1929,168.73,168.64,35.57]
[1717704635670,20.0,168.75,168.64,35.57]
[1717704635979,2.1925,168.76,168.66,35.57]
[1717704636179,2.1925,168.76,168.67,0.17]
[1717704636384,2.1925,168.75,168.68,35.57]
[1717704637372,2.1925,168.75,168.67,0.34]
[1717704637577,2.1925,168.76,168.68,35.74]
[1717704637804,2.1926,168.75,168.68,35.57]
[1717704638301,2.1927,168.74,168.64,35.57]
[1717704638489,2.1927,168.74,168.66,35.57]
[1717704638806,2.1927,168.74,168.65,65.17]
[1717704638807,18.22,168.74,168.57,24.96546013]
[1717704639110,2.1931,168.71,168.57,7.18546013]
[1717704639284,20.0,168.73,168.6,35.57]
[1717704639616,2.1933,168.69,168.6,35.57]
[1717704640001,2.1932,168.7,168.61,55.57]
[1717704640308,2.1933,168.69,168.61,55.57]
[1717704640513,2.1932,168.7,168.61,55.57]
[1717704641994,2.1931,168.71,168.61,55.57]
[1717704642298,2.1932,168.7,168.61,55.57]
[1717704644592,2.1931,168.71,168.61,55.57]
[1717704645407,2.1933,168.7,168.61,55.57]
[1717704649614,20.0,168.73,168.61,55.57]
[1717704649831,2.1928,168.73,168.63,35.57]
[1717704650121,2.1928,168.73,168.65,35.57]
[1717704651327,2.193,168.72,168.65,35.57]
[1717704651816,22.318,168.74,168.65,35.57]
[1717704652118,2.1931,168.71,168.65,35.57]
[1717704653521,2.1931,168.71,168.62,35.74]
[1717704653710,2.1931,168.71,168.61,21.0]
[1717704653711,2.1931,168.71,168.63,55.57]
[1717704656407,33.2817,168.74,168.63,55.57]
[1717704656601,2.1931,168.71,168.63,55.57]
[1717704656919,2.1931,168.71,168.61,1.17]
[1717704656920,2.1933,168.69,168.61,1.17]
[1717704657115,2.1933,168.7,168.62,35.74]
[1717704657513,2.1933,168.7,168.62,35.57]
[1717704658022,4.742,168.7,168.62,35.57]
[1717704658402,2.1935,168.68,168.61,1.0]
[1717704661325,2.1934,168.69,168.61,1.0]
[1717704662223,4.742,168.7,168.61,1.0]
[1717704662523,4.742,168.7,168.61,46.0]
[1717704662524,2.5487,168.7,168.61,46.0]
[1717704662729,2.193,168.72,168.62,55.91]
[1717704662921,2.193,168.72,168.64,35.57]
[1717704663829,2.193,168.72,168.63,35.57]
[1717704664028,2.193,168.72,168.65,35.57]
[1717704665027,22.1928,168.73,168.65,35.57]
[1717704665226,2.1928,168.73,168.65,35.57]
[1717704665825,2.1929,168.72,168.65,35.57]
[1717704668032,4.8667,168.74,168.63,35.57]
[1717704668033,2.1931,168.71,168.63,35.57]
[1717704668416,2.1933,168.69,168.63,35.57]
[1717704668613,10.9644,168.73,168.63,35.57]
[1717704668614,2.1933,168.7,168.63,35.57]
[1717704669636,2.1931,168.71,168.63,35.57]
[1717704670136,13.6378,168.74,168.63,35.57]
[1717704670357,2.1931,168.71,168.63,35.57]
[1717704670808,2.1932,168.7,168.63,35.57]
[1717704671307,2.1931,168.71,168.63,35.57]
[1717704671623,2.1932,168.7,168.63,35.57]
[1717704672033,2.1932,168.7,168.63,36.57]
[1717704673017,2.1931,168.71,168.63,36.57]
[1717704673716,69.3858,168.73,168.63,36.57]
[1717704673717,2.1932,168.7,168.63,36.57]
[1717704674112,2.1931,168.71,168.63,36.57]
[1717704674328,69.3858,168.73,168.63,36.57]
[1717704674527,2.1932,168.7,168.63,36.57]
[1717704675424,2.1933,168.69,168.63,1.0]
[1717704675647,2.1935,168.68,168.63,1.0]
[1717704675938,6.08,168.66,168.63,1.0]
[1717704677436,6.08,168.64,168.63,1.0]
[1717704677855,6.08,168.65,168.63,1.0]
[1717704679527,2.1935,168.68,168.63,1.0]
[1717704679839,6.08,168.66,168.63,1.0]
[1717704681740,4.3871,168.68,168.63,1.0]
[1717704681924,6.08,168.65,168.63,1.0]
[1717704682240,6.08,168.66,168.63,1.0]
[1717704683521,2.1936,168.67,168.63,1.0]
[1717704683831,6.08,168.66,168.63,1.0]
[1717704686645,8.2737,168.66,168.63,1.0]
[1717704688238,6.08,168.66,168.63,1.0]
[1717704688428,8.2737,168.66,168.63,1.0]
[1717704688741,6.08,168.66,168.63,1.0]
[1717704689747,6.08,168.65,168.63,1.0]
[1717704689948,2.1937,168.66,168.63,1.0]
[1717704690128,6.08,168.66,168.63,1.0]
[1717704690833,6.08,168.65,168.63,1.0]
[1717704694144,6.08,168.64,168.63,1.0]
[1717704695122,6.08,168.65,168.63,1.0]
[1717704699058,4.02427256,168.65,168.63,1.0]
[1717704699958,8.2737,168.66,168.63,1.0]
[1717704700134,6.08,168.66,168.63,1.0]
[1717704700341,8.2737,168.66,168.63,1.0]
[1717704700544,6.08,168.66,168.63,1.0]
[1717704700746,19.7384,168.71,168.63,1.0]
[1717704700950,6.08,168.67,168.63,1.0]
[1717704701148,4.3863,168.71,168.63,7.2087]
[1717704701341,2.1933,168.69,168.63,7.2087]
[1717704701541,6.08,168.68,168.63,7.2087]
[1717704701863,6.08,168.66,168.63,1.0]
[1717704702036,2.1934,168.69,168.63,7.2087]
[1717704702354,6.08,168.67,168.63,7.2087]
[1717704704242,6.08,168.66,168.63,7.2087]
[1717704704444,6.08,168.67,168.63,7.2087]
[1717704704650,24.32,168.72,168.63,7.2087]
[1717704704852,6.08,168.68,168.63,7.2087]
[1717704705768,8.2735,168.68,168.63,7.2087]
[1717704706158,6.08,168.68,168.63,7.2087]
[1717704706637,2.1934,168.69,168.63,7.2087]
[1717704706834,6.08,168.68,168.63,7.2087]
[1717704708484,6.08,168.68,168.64,35.58]
[1717704708641,8.2735,168.68,168.64,35.58]
[1717704709064,6.08,168.68,168.64,35.58]
[1717704709476,8.2735,168.68,168.64,35.58]
[1717704711869,6.08,168.68,168.64,51.063]
[1717704712059,8.2731,168.71,168.65,102.2985]
[1717704712255,8.2731,168.71,168.65,96.063]
[1717704712764,8.2732,168.7,168.65,102.2985]
[1717704713150,6.08,168.69,168.65,102.2985]
[1717704714572,6.08,168.69,168.65,57.2985]
[1717704714944,6.08,168.68,168.65,6.2355]
[1717704715161,2.1932,168.7,168.65,6.2355]
[1717704716557,2.1931,168.71,168.65,6.2355]
[1717704717560,2.1932,168.7,168.65,6.2355]
[1717704718149,2.1931,168.71,168.65,6.2355]
[1717704718555,2.1931,168.71,168.66,35.58]
[1717704719573,2.1932,168.7,168.66,35.58]
[1717704720071,6.08,168.69,168.66,35.58]
[1717704720675,2.1931,168.71,168.66,35.58]
[1717704720866,6.08,168.69,168.64,41.7946]
[1717704721061,6.08,168.69,168.65,22.3657]
[1717704721265,6.08,168.69,168.65,16.1511]
[1717704721465,2.1931,168.71,168.66,6.2146]
[1717704721669,257.6,168.77,168.67,41.83]
[1717704721857,6.08,168.74,168.68,41.66]
[1717704722056,2.1926,168.75,168.68,41.66]
[1717704722252,2.1926,168.75,168.67,0.17]
[1717704722253,257.6,168.77,168.7,35.58]
[1717704722452,6.08,168.76,168.7,41.66]
[1717704722853,257.6,168.77,168.71,41.66]
[1717704723059,257.6,168.77,168.75,6.2321]
[1717704725154,6.08,168.76,168.72,22.1531]
[1717704725360,6.08,168.75,168.72,22.1531]
[1717704725864,6.08,168.76,168.72,22.1531]
[1717704726066,257.6,168.77,168.72,22.1531]
[1717704726270,257.6,168.77,168.73,6.5872]
[1717704726858,6.08,168.76,168.73,6.5872]
[1717704728471,257.6,168.77,168.73,6.5872]
[1717704728695,263.68,168.77,168.73,6.5872]
[1717704728995,6.08,168.77,168.73,6.5872]
[1717704729480,2.1918,168.81,168.73,42.1672]
[1717704729665,6.08,168.78,168.73,51.4571]
[1717704729873,6.08,168.78,168.74,6.5379]
[1717704730173,6.08,168.77,168.74,6.5379]
[1717704733356,2.1918,168.81,168.74,6.5379]
[1717704733777,6.08,168.78,168.74,6.5379]
[1717704734073,2.1918,168.81,168.74,22.6945]
[1717704734266,6.08,168.78,168.74,22.6945]
[1717704734786,2.1917,168.82,168.74,64.3545]
[1717704734996,6.08,168.8,168.74,64.3545]
[1717704736871,2.1917,168.82,168.75,6.08]
[1717704737179,1.36792672,168.85,168.77,21.6751]
[1717704737582,2.1914,168.84,168.78,6.0704]
[1717704737876,6.08,168.82,168.78,6.0704]
[1717704738081,6.08,168.81,168.78,6.0704]
[1717704739462,6.08,168.81,168.76,41.6504]
[1717704739665,6.08,168.81,168.76,57.2551]
[1717704739981,6.08,168.8,168.76,57.2551]
[1717704740185,2.1914,168.84,168.76,57.2551]
[1717704740367,6.08,168.81,168.77,6.0704]
[1717704743471,2.1915,168.83,168.77,6.0704]
[1717704743672,6.08,168.81,168.77,6.0704]
[1717704746292,1.36792672,168.85,168.77,6.0704]
[1717704746600,3.55922672,168.85,168.77,6.0704]
[1717704746887,6.08,168.82,168.77,22.7361]
[1717704747090,3.55922672,168.85,168.77,22.7361]
[1717704747292,6.08,168.82,168.77,22.7361]
[1717704747989,1.36792672,168.85,168.79,23.2031]
[1717704748194,6.08,168.89,168.84,12.6174]
[1717704748570,6.08,168.89,168.85,35.58]
[1717704749195,2.1906,168.9,168.85,35.58]
[1717704749989,8.2707,168.89,168.85,35.58]
[1717704750374,6.08,168.89,168.85,35.58]